[Event "25th Zadar Open 2018"]
[Site "Zadar"]
[Date "2018.12.17"]
[Round "4.25"]
[White "Muha, Miljenko"]
[Black "Chan, Kim Yew"]
[Result "0-1"]
[ECO "E14"]
[WhiteElo "2334"]
[BlackElo "2175"]
[Annotator "NA"]
[PlyCount "64"]
[EventDate "2018.12.15"]
[EventType "swiss"]
[EventCountry "CRO"]
[SourceTitle "playchess.com"]
[Source "ChessBase"]
[SourceQuality "1"]
[TimeControl "40/5400+30:1800+30"]

1. d4 {[%emt 0:00:30]} Nf6 {[%emt 0:00:30]} 2. Nf3 {[%emt 0:00:00]} e6 {[%emt 0:00:00]} 3. c4 {[%emt 0:00:00]} b6 {[%emt 0:00:00]} 4. e3 {[%emt 0:00:30]} Bb7 {[%emt 0:00:00]} 5. Bd3 {[%emt 0:00:30]} Be7 {[%emt 0:01:00]} 6. O-O {[%emt 0:00:30]} O-O {[%emt 0:00:30]} 7. b3 {[%emt 0:03:30]} c5 {[%emt 0:04:30]} 8. Bb2 {[%emt 0:01:30]} cxd4 {[%emt 0:02:30]} 9. Nxd4 {[%emt 0:01:30]} Nc6 {[%emt 0:02:30]} 10. Nxc6 {[%emt 0:07:30]} Bxc6 {[%emt 0:00:30]} 11. Nc3 {[%emt 0:01:30]} d5 {[%emt 0:07:30]} 12. Qe2 {[%emt 0:02:30]} dxc4 {[%emt 0:20:30]} 13. Bxc4 {[%emt 0:00:30]} Nd7 {[%emt 0:00:30]} 14. Rfd1 {[%emt 0:06:30]} Bf6 {[%emt 0:01:30]} 15. Bb5 {[%emt 0:02:30]} Rc8 {[%emt 0:01:30]} 16. Rac1 {[%emt 0:05:30]} Qe8 {[%emt 0:14:30]} 17. Bxc6 {[%emt 0:29:30]} Rxc6 {[%emt 0:02:30]} 18. Nb5 {[%emt 0:04:30]} Rxc1 {[%emt 0:04:30]} 19. Bxc1 {[%emt 0:00:30]} a5 {[%emt 0:05:30]} 20. Ba3 {[%emt 0:02:30]} Be7 {[%emt 0:03:30]} 21. Nc7 {[%emt 0:04:30]} Qd8 {[%emt 0:00:30]} 22. Bxe7 {[%emt 0:00:00]} Qxe7 {[%emt 0:00:00]} 23. Qb5 {[%emt 0:00:00]} Nf6 {[%emt 0:05:00]} 24. Qxb6 {[%emt 0:00:30]} Qa3 {[%emt 0:00:30]} 25. Qd4 {[%emt 0:05:54]} Qxa2 {[%emt 0:00:30]} 26. Qc4 {[%emt 0:00:42]} a4 {[%emt 0:02:56]} 27. Na6 {[%emt 0:06:49]} axb3 {[%emt 0:03:10]} 28. Nc5 {[%emt 0:01:26]} Qc2 {[%emt 0:01:26]} 29. Qxc2 {[%emt 0:00:02]} bxc2 {[%emt 0:00:07]} 30. Rc1 {[%emt 0:00:03]} Rd8 {[%emt 0:00:35]} 31. Rf1 {[%emt 0:02:11]} Rd1 {[%emt 0:01:14]} 32. Nb3 {[%emt 0:00:15]} Ne4 {[%emt 0:00:11]} 0-1

[Event "25th Zadar Open 2018"]
[Site "Zadar"]
[Date "2018.12.17"]
[Round "4.26"]
[White "Sahil, Tickoo"]
[Black "Djoric, Dusan"]
[Result "1/2-1/2"]
[ECO "D36"]
[WhiteElo "2224"]
[BlackElo "2298"]
[Annotator "NA"]
[PlyCount "53"]
[EventDate "2018.12.15"]
[EventType "swiss"]
[EventCountry "CRO"]
[SourceTitle "playchess.com"]
[Source "ChessBase"]
[SourceQuality "1"]
[TimeControl "40/5400+30:1800+30"]

1. d4 {[%emt 0:01:30]} Nf6 {[%emt 0:01:30]} 2. c4 {[%emt 0:01:30]} e6 {[%emt 0:00:30]} 3. Nc3 {[%emt 0:00:30]} d5 {[%emt 0:00:30]} 4. cxd5 {[%emt 0:00:30]} exd5 {[%emt 0:00:00]} 5. Bg5 {[%emt 0:00:00]} Be7 {[%emt 0:01:00]} 6. e3 {[%emt 0:01:00]} c6 {[%emt 0:00:30]} 7. Bd3 {[%emt 0:00:00]} h6 {[%emt 0:00:30]} 8. Bh4 {[%emt 0:00:00]} O-O {[%emt 0:00:30]} 9. Qc2 {[%emt 0:00:30]} Re8 {[%emt 0:00:00]} 10. Nge2 {[%emt 0:04:30]} Nbd7 {[%emt 0:01:00]} 11. Rd1 {[%emt 0:06:30]} Nh5 {[%emt 0:11:30]} 12. Bxe7 {[%emt 0:03:30]} Qxe7 {[%emt 0:00:30]} 13. O-O {[%emt 0:04:30]} Ndf6 {[%emt 0:09:30]} 14. Bf5 {[%emt 0:01:30]} Be6 {[%emt 0:09:30]} 15. Rfe1 {[%emt 0:11:30]} Rad8 {[%emt 0:07:30]} 16. a3 {[%emt 0:11:30]} Bxf5 {[%emt 0:09:30]} 17. Qxf5 {[%emt 0:00:30]} g6 {[%emt 0:02:30]} 18. Qh3 {[%emt 0:05:30]} Nh7 {[%emt 0:05:30]} 19. Ng3 {[%emt 0:09:30]} Ng5 {[%emt 0:03:30]} 20. Qg4 {[%emt 0:00:00]} Nxg3 {[%emt 0:01:30]} 21. Qxg3 {[%emt 0:06:00]} Ne4 {[%emt 0:00:30]} 22. Nxe4 {[%emt 0:00:30]} dxe4 {[%emt 0:00:30]} 23. Qg4 {[%emt 0:10:56]} a5 {[%emt 0:01:30]} 24. Rc1 {[%emt 0:01:09]} Rd5 {[%emt 0:00:30]} 25. Rc2 {[%emt 0:01:06]} h5 {[%emt 0:06:30]} 26. Qe2 {[%emt 0:00:32]} Rb5 {[%emt 0:01:30]} 27. Rec1 {[%emt 0:01:43]} 1/2-1/2

[Event "25th Zadar Open 2018"]
[Site "Zadar"]
[Date "2018.12.17"]
[Round "4.27"]
[White "Parnali, S Dharia"]
[Black "Ojas Kulkarni"]
[Result "1/2-1/2"]
[ECO "A50"]
[WhiteElo "2118"]
[BlackElo "2282"]
[Annotator "NA"]
[PlyCount "56"]
[EventDate "2018.12.15"]
[EventType "swiss"]
[EventCountry "CRO"]
[SourceTitle "playchess.com"]
[Source "ChessBase"]
[SourceQuality "1"]
[TimeControl "40/5400+30:1800+30"]

1. d4 {[%emt 0:00:30]} Nf6 {[%emt 0:00:30]} 2. c4 {[%emt 0:00:00]} b6 {[%emt 0:00:30]} 3. Nc3 {[%emt 0:03:00]} Bb7 {[%emt 0:00:00]} 4. Bf4 {[%emt 0:00:30]} g6 {[%emt 0:01:00]} 5. e3 {[%emt 0:01:30]} Bg7 {[%emt 0:00:30]} 6. h4 {[%emt 0:02:30]} d6 {[%emt 0:02:30]} 7. Nf3 {[%emt 0:00:30]} Nbd7 {[%emt 0:02:30]} 8. Bd3 {[%emt 0:01:30]} O-O {[%emt 0:15:30]} 9. Qc2 {[%emt 0:05:30]} Nh5 {[%emt 0:02:30]} 10. Be4 {[%emt 0:03:30]} Bxe4 {[%emt 0:01:30]} 11. Qxe4 {[%emt 0:00:30]} Nxf4 {[%emt 0:02:30]} 12. exf4 {[%emt 0:00:30]} c5 {[%emt 0:00:30]} 13. d5 {[%emt 0:01:30]} Re8 {[%emt 0:19:30]} 14. O-O {[%emt 0:02:30]} Nf6 {[%emt 0:00:30]} 15. Qd3 {[%emt 0:00:30]} Qd7 {[%emt 0:00:30]} 16. g3 {[%emt 0:08:30]} a6 {[%emt 0:02:30]} 17. Rfe1 {[%emt 0:01:30]} Rab8 {[%emt 0:02:30]} 18. a4 {[%emt 0:01:30]} Qh3 {[%emt 0:02:30]} 19. Ng5 {[%emt 0:03:30]} Qf5 {[%emt 0:00:30]} 20. Rad1 {[%emt 0:02:30]} Qxd3 {[%emt 0:00:30]} 21. Rxd3 {[%emt 0:00:00]} Ng4 {[%emt 0:00:30]} 22. Rd2 {[%emt 0:13:00]} Nh6 {[%emt 0:09:30]} 23. Rde2 {[%emt 0:02:30]} Rb7 {[%emt 0:00:30]} 24. Nge4 {[%emt 0:04:30]} Rc8 {[%emt 0:00:30]} 25. Ng5 {[%emt 0:00:30]} Rcc7 {[%emt 0:00:00]} 26. Kg2 {[%emt 0:02:30]} Nf5 {[%emt 0:00:00]} 27. Nf3 {[%emt 0:00:30]} Nd4 {[%emt 0:04:30]} 28. Rd2 {[%emt 0:00:30]} Nb3 {[%emt 0:07:30]} 1/2-1/2

[Event "25th Zadar Open 2018"]
[Site "Zadar"]
[Date "2018.12.18"]
[Round "5.2"]
[White "Brkic, Ante"]
[Black "Cvitan, Ognjen"]
[Result "1/2-1/2"]
[ECO "B19"]
[WhiteElo "2563"]
[BlackElo "2503"]
[Annotator "ChessBase"]
[PlyCount "51"]
[EventDate "2018.12.15"]
[EventType "swiss"]
[EventCountry "CRO"]
[SourceTitle "playchess.com"]
[Source "ChessBase"]
[SourceQuality "1"]
[TimeControl "40/5400+30:1800+30"]

1. e4 {[%emt 0:00:30]} c6 {[%emt 0:00:30]} 2. d4 {[%emt 0:00:00]} d5 {[%emt 0:00:30]} 3. Nc3 {[%emt 0:00:00]} dxe4 {[%emt 0:00:30]} 4. Nxe4 {[%emt 0:00:30]} Bf5 {[%emt 0:00:30]} 5. Ng3 {[%emt 0:00:00]} Bg6 {[%emt 0:00:30]} 6. h4 {[%emt 0:00:00]} h6 {[%emt 0:00:30]} 7. Nf3 {[%emt 0:00:30]} e6 {[%emt 0:01:30]} 8. Ne5 {[%emt 0:00:00]} Bh7 {[%emt 0:00:30]} 9. Bd3 {[%emt 0:00:00]} Bxd3 {[%emt 0:01:30]} 10. Qxd3 {[%emt 0:00:30]} Nd7 {[%emt 0:01:30]} 11. f4 {[%emt 0:00:30]} Be7 {[%emt 0:02:30]} 12. Bd2 {[%emt 0:00:30]} Nxe5 {[%emt 0:02:30]} 13. fxe5 {[%emt 0:00:30]} Bxh4 {[%emt 0:01:30]} 14. O-O-O {[%emt 0:00:00]} Bxg3 {[%emt 0:00:30]} 15. Qxg3 {[%emt 0:00:00]} Ne7 {[%emt 0:00:30]} 16. Qxg7 {[%emt 0:00:30]} Rg8 {[%emt 0:00:30]} 17. Qxh6 {[%emt 0:00:30]} Qd5 {[%emt 0:00:30]} 18. Kb1 {[%emt 0:00:30]} O-O-O {[%emt 0:00:30]} 19. Qf6 {[%emt 0:00:30]} Rxg2 {[%emt 0:01:30]} 20. Bc3 {[%emt 0:00:30]} Nf5 {[%emt 0:00:30]} 21. Qxf7 {[%emt 0:00:30]} Rg7 {[%emt 0:01:30]} 22. Qh5 {[%emt 0:00:30]} Ng3 {[%emt 0:00:30]} 23. Qh6 {[%emt 0:00:00]} Nf5 {[%emt 0:00:00]} 24. Qh5 {[%emt 0:02:00]} Ng3 {[%emt 0:00:00]} 25. Qh6 {[%emt 0:00:30]} Nf5 {[%emt 0:00:30]} 26. Qh5 {[%emt 0:00:00]} 1/2-1/2

[Event "25th Zadar Open 2018"]
[Site "Zadar"]
[Date "2018.12.18"]
[Round "5.3"]
[White "Tomazini, Zan"]
[Black "Djukic, Nikola"]
[Result "1-0"]
[ECO "B22"]
[WhiteElo "2437"]
[BlackElo "2574"]
[Annotator "RC"]
[PlyCount "69"]
[EventDate "2018.12.15"]
[EventType "swiss"]
[EventCountry "CRO"]
[SourceTitle "playchess.com"]
[Source "ChessBase"]
[SourceQuality "1"]
[TimeControl "40/5400+30:1800+30"]

1. e4 {[%emt 0:00:30]} c5 {[%emt 0:08:30]} 2. Nf3 {[%emt 0:00:30]} Nc6 {[%emt 0:00:00]} 3. c3 {[%emt 0:00:00]} Nf6 {[%emt 0:00:00]} 4. e5 {[%emt 0:00:00]} Nd5 {[%emt 0:00:30]} 5. d4 {[%emt 0:00:00]} cxd4 {[%emt 0:00:00]} 6. cxd4 {[%emt 0:00:00]} d6 {[%emt 0:00:00]} 7. Bc4 {[%emt 0:00:30]} dxe5 {[%emt 0:00:00]} 8. Nxe5 {[%emt 0:00:30]} Be6 {[%emt 0:00:00]} 9. Nd2 {[%emt 0:12:30]} g6 {[%emt 0:26:30]} 10. Ndf3 {[%emt 0:02:30]} Bg7 {[%emt 0:13:30]} 11. Ng5 {[%emt 0:04:30]} Nxe5 {[%emt 0:11:30]} 12. Nxe6 {[%emt 0:01:30]} fxe6 {[%emt 0:00:30]} 13. dxe5 {[%emt 0:00:30]} O-O {[%emt 0:01:30]} 14. O-O {[%emt 0:01:30]} Kh8 {[%emt 0:00:30]} 15. f4 {[%emt 0:07:30]} Qb6+ {[%emt 0:05:30]} 16. Kh1 {[%emt 0:00:30]} Rad8 {[%emt 0:00:30]} 17. Qb3 {[%emt 0:05:30]} Qd4 {[%emt 0:10:45]} 18. Rd1 {[%emt 0:14:30]} Qe4 {[%emt 0:00:14]} 19. Bd3 {[%emt 0:00:30]} Qb4 {[%emt 0:00:11]} 20. Bc4 {[%emt 0:00:00]} g5 {[%emt 0:05:55]} 21. Qxb4 {[%emt 0:14:00]} Nxb4 {[%emt 0:00:07]} 22. Bd2 {[%emt 0:00:30]} Nd5 {[%emt 0:11:21]} 23. fxg5 {[%emt 0:03:30]} Bxe5 {[%emt 0:00:05]} 24. Bxd5 {[%emt 0:04:30]} Rxd5 {[%emt 0:00:37]} 25. Bb4 {[%emt 0:01:30]} Bxb2 {[%emt 0:01:00]} 26. Rab1 {[%emt 0:02:30]} Rxd1+ {[%emt 0:00:36]} 27. Rxd1 {[%emt 0:00:30]} Rf7 {[%emt 0:00:26]} 28. g3 {[%emt 0:01:30]} Kg7 {[%emt 0:01:11]} 29. Rd7 {[%emt 0:00:30]} Kg6 {[%emt 0:00:18]} 30. h4 {[%emt 0:13:15]} e5 {[%emt 0:00:36]} 31. Rxb7 {[%emt 0:00:33]} Bd4 {[%emt 0:01:18]} 32. Rxe7 {[%emt 0:00:20]} Rf2 {[%emt 0:01:06]} 33. g4 {[%emt 0:02:59]} Rxa2 {[%emt 0:00:17]} 34. Rd7 {[%emt 0:01:50]} Bf2 {[%emt 0:00:49]} 35. Bf8 {[%emt 0:00:16]} 1-0

[Event "25th Zadar Open 2018"]
[Site "Zadar"]
[Date "2018.12.18"]
[Round "5.7"]
[White "Loncar, Robert"]
[Black "Krzyzanowski, Marcin"]
[Result "1/2-1/2"]
[ECO "E90"]
[WhiteElo "2397"]
[BlackElo "2491"]
[Annotator "ChessBase"]
[PlyCount "101"]
[EventDate "2018.12.15"]
[EventType "swiss"]
[EventCountry "CRO"]
[SourceTitle "playchess.com"]
[Source "ChessBase"]
[SourceQuality "1"]
[TimeControl "40/5400+30:1800+30"]

1. Nf3 {[%emt 0:00:30]} Nf6 {[%emt 0:00:30]} 2. c4 {[%emt 0:00:00]} g6 {[%emt 0:00:30]} 3. Nc3 {[%emt 0:00:00]} Bg7 {[%emt 0:04:30]} 4. e4 {[%emt 0:00:30]} O-O {[%emt 0:04:30]} 5. d4 {[%emt 0:00:30]} c5 {[%emt 0:00:30]} 6. d5 {[%emt 0:00:30]} d6 {[%emt 0:00:30]} 7. h3 {[%emt 0:00:30]} e6 {[%emt 0:00:30]} 8. Bd3 {[%emt 0:03:30]} exd5 {[%emt 0:00:30]} 9. exd5 {[%emt 0:00:00]} Re8+ {[%emt 0:01:30]} 10. Kf1 {[%emt 0:00:00]} Nbd7 {[%emt 0:03:30]} 11. g4 {[%emt 0:10:30]} a6 {[%emt 0:03:30]} 12. a4 {[%emt 0:01:30]} Rb8 {[%emt 0:02:30]} 13. Bg5 {[%emt 0:16:30]} Ne5 {[%emt 0:05:30]} 14. Nxe5 {[%emt 0:00:30]} Rxe5 {[%emt 0:00:30]} 15. Qd2 {[%emt 0:01:30]} Qf8 {[%emt 0:03:30]} 16. Bf4 {[%emt 0:01:30]} Re8 {[%emt 0:02:30]} 17. Kg2 {[%emt 0:06:30]} Nd7 {[%emt 0:05:30]} 18. Rhe1 {[%emt 0:08:30]} Ne5 {[%emt 0:05:30]} 19. Bf1 {[%emt 0:01:30]} Bd7 {[%emt 0:02:30]} 20. Bg3 {[%emt 0:05:30]} f5 {[%emt 0:06:30]} 21. f4 {[%emt 0:02:30]} Nf7 {[%emt 0:01:30]} 22. g5 {[%emt 0:01:30]} Rxe1 {[%emt 0:01:30]} 23. Bxe1 {[%emt 0:01:30]} Qd8 {[%emt 0:05:30]} 24. h4 {[%emt 0:02:30]} Qe7 {[%emt 0:08:30]} 25. Bd3 {[%emt 0:02:30]} Re8 {[%emt 0:05:30]} 26. Bf2 {[%emt 0:04:30]} Qd8 {[%emt 0:00:30]} 27. a5 {[%emt 0:02:30]} b6 {[%emt 0:02:30]} 28. Ne2 {[%emt 0:07:34]} b5 {[%emt 0:05:39]} 29. Ra2 {[%emt 0:03:22]} Qb8 {[%emt 0:06:10]} 30. b3 {[%emt 0:02:19]} bxc4 {[%emt 0:00:09]} 31. bxc4 {[%emt 0:02:36]} Qb3 {[%emt 0:00:10]} 32. h5 {[%emt 0:05:32]} Rb8 {[%emt 0:10:06]} 33. Rc2 {[%emt 0:01:26]} Qa3 {[%emt 0:01:08]} 34. h6 {[%emt 0:00:27]} Bh8 {[%emt 0:00:07]} 35. Ra2 {[%emt 0:01:30]} Qb3 {[%emt 0:00:08]} 36. Be1 {[%emt 0:01:44]} Nd8 {[%emt 0:01:07]} 37. Rc2 {[%emt 0:00:41]} Qa3 {[%emt 0:02:16]} 38. Qe3 {[%emt 0:01:14]} Nf7 {[%emt 0:00:54]} 39. Bc3 {[%emt 0:00:39]} Re8 {[%emt 0:00:28]} 40. Qd2 {[%emt 0:00:00]} Bxc3 {[%emt 0:00:00]} 41. Rxc3 {[%emt 0:00:56]} Qb4 {[%emt 0:04:38]} 42. Qc1 {[%emt 0:10:30]} Rb8 {[%emt 0:03:30]} 43. Rc2 {[%emt 0:03:30]} Qb1 {[%emt 0:11:19]} 44. Qd2 {[%emt 0:04:09]} Qb4 {[%emt 0:00:09]} 45. Qc1 {[%emt 0:03:34]} Qb1 {[%emt 0:00:19]} 46. Qe3 {[%emt 0:03:48]} Kf8 {[%emt 0:01:26]} 47. Qd2 {[%emt 0:01:05]} Qb4 {[%emt 0:03:08]} 48. Qc1 {[%emt 0:00:39]} Qb1 {[%emt 0:02:44]} 49. Qd2 {[%emt 0:00:31]} Qb4 {[%emt 0:01:13]} 50. Qc1 {[%emt 0:00:54]} Qb1 {[%emt 0:00:48]} 51. Qd2 {[%emt 0:00:01]} 1/2-1/2

[Event "25th Zadar Open 2018"]
[Site "Zadar"]
[Date "2018.12.18"]
[Round "5.10"]
[White "Nester, Ihor"]
[Black "Plenca, Jadranko"]
[Result "1/2-1/2"]
[ECO "E09"]
[WhiteElo "2337"]
[BlackElo "2475"]
[Annotator "ChessBase"]
[PlyCount "117"]
[EventDate "2018.12.15"]
[EventType "swiss"]
[EventCountry "CRO"]
[SourceTitle "playchess.com"]
[Source "ChessBase"]
[SourceQuality "1"]
[TimeControl "40/5400+30:1800+30"]

1. Nf3 {[%emt 0:06:30]} d5 {[%emt 0:00:30]} 2. d4 {[%emt 0:00:30]} Nf6 {[%emt 0:00:00]} 3. c4 {[%emt 0:00:00]} e6 {[%emt 0:00:00]} 4. g3 {[%emt 0:00:00]} Be7 {[%emt 0:00:30]} 5. Bg2 {[%emt 0:00:30]} O-O {[%emt 0:00:30]} 6. O-O {[%emt 0:00:00]} Nbd7 {[%emt 0:00:00]} 7. Qc2 {[%emt 0:00:00]} c6 {[%emt 0:00:00]} 8. Nbd2 {[%emt 0:00:30]} b6 {[%emt 0:00:00]} 9. e4 {[%emt 0:00:00]} dxc4 {[%emt 0:00:00]} 10. Nxc4 {[%emt 0:00:00]} Bb7 {[%emt 0:00:30]} 11. Bf4 {[%emt 0:00:30]} c5 {[%emt 0:00:00]} 12. Rfe1 {[%emt 0:00:30]} cxd4 {[%emt 0:00:00]} 13. Nd6 {[%emt 0:00:30]} Bxd6 {[%emt 0:00:30]} 14. Bxd6 {[%emt 0:00:00]} d3 {[%emt 0:00:00]} 15. Qxd3 {[%emt 0:07:00]} Bxe4 {[%emt 0:01:00]} 16. Qd4 {[%emt 0:00:30]} e5 {[%emt 0:05:30]} 17. Nxe5 {[%emt 0:01:30]} Nxe5 {[%emt 0:01:30]} 18. Bxe5 {[%emt 0:28:30]} Bxg2 {[%emt 0:01:30]} 19. Kxg2 {[%emt 0:00:00]} Qxd4 {[%emt 0:01:30]} 20. Bxd4 {[%emt 0:00:00]} Rfe8 {[%emt 0:00:00]} 21. Kf3 {[%emt 0:00:30]} Rad8 {[%emt 0:03:00]} 22. Rxe8+ {[%emt 0:01:30]} Rxe8 {[%emt 0:00:30]} 23. Rc1 {[%emt 0:01:30]} Nd5 {[%emt 0:00:30]} 24. a4 {[%emt 0:00:30]} f6 {[%emt 0:00:30]} 25. Rc6 {[%emt 0:01:30]} Rd8 {[%emt 0:02:30]} 26. Rc4 {[%emt 0:07:30]} Rd7 {[%emt 0:04:30]} 27. b4 {[%emt 0:02:30]} Kf7 {[%emt 0:04:30]} 28. b5 {[%emt 0:01:30]} Rc7 {[%emt 0:04:30]} 29. Rxc7+ {[%emt 0:01:30]} Nxc7 {[%emt 0:00:00]} 30. Ke4 {[%emt 0:00:30]} Ke6 {[%emt 0:00:00]} 31. f4 {[%emt 0:02:30]} g6 {[%emt 0:01:30]} 32. Kd3 {[%emt 0:00:30]} Ne8 {[%emt 0:03:30]} 33. Kc4 {[%emt 0:03:30]} Nd6+ {[%emt 0:00:30]} 34. Kb4 {[%emt 0:00:00]} Nb7 {[%emt 0:00:30]} 35. g4 {[%emt 0:06:00]} Na5 {[%emt 0:04:30]} 36. Bc3 {[%emt 0:06:30]} Nb7 {[%emt 0:04:30]} 37. Kc4 {[%emt 0:00:00]} Nd6+ {[%emt 0:01:30]} 38. Kd4 {[%emt 0:00:00]} f5 {[%emt 0:03:30]} 39. g5 {[%emt 0:03:30]} Ne4 {[%emt 0:04:30]} 40. Bb4 {[%emt 0:00:00]} Nd6 {[%emt 0:00:00]} 41. Ba3 {[%emt 0:10:00]} Ne4 {[%emt 0:02:00]} 42. Bf8 {[%emt 0:00:30]} Nd6 {[%emt 0:01:30]} 43. Bg7 {[%emt 0:00:30]} Ne4 {[%emt 0:01:30]} 44. Be5 {[%emt 0:19:30]} Nc5 {[%emt 0:00:30]} 45. Bb8 {[%emt 0:00:00]} a5 {[%emt 0:01:30]} 46. bxa6 {[%emt 0:00:00]} Nxa6 {[%emt 0:00:30]} 47. Ba7 {[%emt 0:00:30]} Nc5 {[%emt 0:00:00]} 48. Bxb6 {[%emt 0:00:30]} Nxa4 {[%emt 0:00:00]} 49. Ba7 {[%emt 0:03:30]} Kd6 {[%emt 0:01:30]} 50. Kc4 {[%emt 0:00:30]} Nb2+ {[%emt 0:01:30]} 51. Kc3 {[%emt 0:01:30]} Na4+ {[%emt 0:00:30]} 52. Kd4 {[%emt 0:01:54]} Nb2 {[%emt 0:00:30]} 53. Bc5+ {[%emt 0:01:43]} Ke6 {[%emt 0:02:30]} 54. Bb4 {[%emt 0:01:21]} Nd1 {[%emt 0:01:30]} 55. Be1 {[%emt 0:00:33]} Kd6 {[%emt 0:00:30]} 56. Bg3 {[%emt 0:02:43]} Ke6 {[%emt 0:00:00]} 57. Be1 {[%emt 0:04:42]} Kd6 {[%emt 0:02:00]} 58. Bb4+ {[%emt 0:00:08]} Ke6 {[%emt 0:00:30]} 59. Be1 {[%emt 0:00:05]} 1/2-1/2

[Event "25th Zadar Open 2018"]
[Site "Zadar"]
[Date "2018.12.18"]
[Round "5.11"]
[White "Bratkovic, Jakob"]
[Black "Bukal, Vladimir Jr."]
[Result "1/2-1/2"]
[ECO "B15"]
[WhiteElo "2239"]
[BlackElo "2390"]
[Annotator "ChessBase"]
[PlyCount "113"]
[EventDate "2018.12.15"]
[EventType "swiss"]
[EventCountry "CRO"]
[SourceTitle "playchess.com"]
[Source "ChessBase"]
[SourceQuality "1"]
[TimeControl "40/5400+30:1800+30"]

1. e4 {[%emt 0:02:30]} c6 {[%emt 0:00:30]} 2. d4 {[%emt 0:00:00]} d5 {[%emt 0:00:00]} 3. Nc3 {[%emt 0:00:00]} dxe4 {[%emt 0:00:00]} 4. Nxe4 {[%emt 0:00:30]} Nf6 {[%emt 0:00:00]} 5. Nxf6+ {[%emt 0:00:30]} exf6 {[%emt 0:00:00]} 6. c3 {[%emt 0:00:30]} Bd6 {[%emt 0:00:30]} 7. Bd3 {[%emt 0:00:30]} O-O {[%emt 0:00:00]} 8. Qc2 {[%emt 0:00:30]} Re8+ {[%emt 0:00:00]} 9. Ne2 {[%emt 0:00:00]} h5 {[%emt 0:00:30]} 10. Be3 {[%emt 0:15:00]} Nd7 {[%emt 0:00:30]} 11. O-O-O {[%emt 0:00:30]} Nf8 {[%emt 0:00:30]} 12. Ng3 {[%emt 0:02:30]} Be6 {[%emt 0:03:30]} 13. Kb1 {[%emt 0:03:30]} Rc8 {[%emt 0:05:30]} 14. Nf5 {[%emt 0:04:30]} g6 {[%emt 0:16:30]} 15. Nxd6 {[%emt 0:15:30]} Qxd6 {[%emt 0:00:30]} 16. b3 {[%emt 0:02:30]} b5 {[%emt 0:05:30]} 17. Bc1 {[%emt 0:06:30]} a5 {[%emt 0:01:30]} 18. f4 {[%emt 0:01:30]} f5 {[%emt 0:03:30]} 19. h3 {[%emt 0:05:30]} h4 {[%emt 0:20:30]} 20. g4 {[%emt 0:07:30]} hxg3 {[%emt 0:00:30]} 21. Rhg1 {[%emt 0:00:30]} a4 {[%emt 0:06:30]} 22. Rxg3 {[%emt 0:03:30]} axb3 {[%emt 0:00:30]} 23. axb3 {[%emt 0:00:30]} Qd5 {[%emt 0:00:30]} 24. c4 {[%emt 0:00:30]} bxc4 {[%emt 0:00:00]} 25. Bxc4 {[%emt 0:00:30]} Qa5 {[%emt 0:01:00]} 26. h4 {[%emt 0:04:30]} Bxc4 {[%emt 0:12:30]} 27. Qxc4 {[%emt 0:00:30]} Ra8 {[%emt 0:05:34]} 28. Bb2 {[%emt 0:00:00]} Re1 {[%emt 0:00:37]} 29. Rg1 {[%emt 0:01:00]} Re3 {[%emt 0:03:10]} 30. h5 {[%emt 0:03:30]} Qd5 {[%emt 0:02:29]} 31. hxg6 {[%emt 0:00:31]} fxg6 {[%emt 0:00:07]} 32. Kc2 {[%emt 0:01:50]} Rb8 {[%emt 0:01:50]} 33. Bc3 {[%emt 0:00:47]} Kg7 {[%emt 0:00:22]} 34. Qxd5 {[%emt 0:05:30]} cxd5 {[%emt 0:00:02]} 35. Rde1 {[%emt 0:00:07]} Rf3 {[%emt 0:01:26]} 36. Rgf1 {[%emt 0:02:36]} Rh3 {[%emt 0:02:57]} 37. Kb2 {[%emt 0:02:13]} Rh2+ {[%emt 0:00:23]} 38. Ka3 {[%emt 0:00:12]} Rh3 {[%emt 0:02:22]} 39. Kb2 {[%emt 0:00:05]} Rh2+ {[%emt 0:01:44]} 40. Ka3 {[%emt 0:00:00]} Ra8+ {[%emt 0:00:00]} 41. Kb4 {[%emt 0:03:39]} Rh3 {[%emt 0:08:27]} 42. Ba1 {[%emt 0:06:30]} Kf7 {[%emt 0:03:30]} 43. Kc5 {[%emt 0:01:30]} Nd7+ {[%emt 0:07:43]} 44. Kxd5 {[%emt 0:02:30]} Nf6+ {[%emt 0:00:08]} 45. Kc6 {[%emt 0:04:30]} Rxb3 {[%emt 0:01:15]} 46. Rb1 {[%emt 0:00:30]} Rc8+ {[%emt 0:06:48]} 47. Kd6 {[%emt 0:00:00]} Ra3 {[%emt 0:00:24]} 48. Rb7+ {[%emt 0:06:00]} Kf8 {[%emt 0:00:01]} 49. Rfb1 {[%emt 0:01:34]} Ra6+ {[%emt 0:01:02]} 50. R7b6 {[%emt 0:00:22]} Ra5 {[%emt 0:04:49]} 51. Rh1 {[%emt 0:06:06]} Rd8+ {[%emt 0:04:24]} 52. Ke6 {[%emt 0:00:37]} Ng8 {[%emt 0:00:06]} 53. d5 {[%emt 0:00:56]} Re8+ {[%emt 0:00:51]} 54. Kd6 {[%emt 0:00:17]} Rd8+ {[%emt 0:00:25]} 55. Ke6 {[%emt 0:00:26]} Re8+ {[%emt 0:00:04]} 56. Kd6 {[%emt 0:02:32]} Rd8+ {[%emt 0:00:02]} 57. Ke6 {[%emt 0:04:55]} 1/2-1/2